fUSD/lending_fUSD_20240611
["ID","MTS","AMOUNT","RATE_DAILY","PERIOD"]
[329106746,1718109054010,-500.0,0.00024657,2]
[329106747,1718109054024,-1327.69,0.00024657,2]
[329106749,1718109054038,-151.224762,0.00024657,7]
[329106751,1718109054049,-500.0,0.00024657,2]
[329106753,1718109054061,-500.0,0.00024657,2]
[329106755,1718109054073,-151.0,0.00024657,7]
[329106758,1718109054084,-1055.71,0.00024657,2]
[329106759,1718109054094,-12929.86,0.00024657,2]
[329106761,1718109054107,-734.04,0.00024657,2]
[329106763,1718109054118,-181.421721,0.00024657,7]
[329106765,1718109054130,-1049.91,0.00024657,2]
[329106767,1718109054141,-9381.92,0.00024657,2]
[329106769,1718109054152,-500.0,0.00024657,2]
[329106771,1718109054163,-1562.94,0.00024657,2]
[329106773,1718109054176,-502.63345075,0.00024657,2]
[329106775,1718109054187,-655.59,0.00024657,2]
[329106777,1718109054198,-492.49314163,0.00024657,2]
[329106780,1718109054209,-3473.64,0.00024657,2]
[329106782,1718109054219,-14372.62,0.00024657,2]
[329106784,1718109054230,-500.0,0.00024657,2]
[329106786,1718109054241,-151.0,0.00024657,7]
[329106788,1718109054256,-151.0,0.00024657,7]
[329106790,1718109054267,-500.0,0.00024657,2]
[329106792,1718109054278,-1467.31,0.00024657,2]
[329106794,1718109054288,-1366.29,0.00024657,2]
[329106796,1718109054299,-341.05170518,0.00024657,2]
[329106798,1718109054310,-890.0,0.00024657,2]
[329106800,1718109054321,-500.0,0.00024657,2]
[329106802,1718109054332,-500.0,0.00024657,2]
[329106804,1718109054343,-500.0,0.00024657,2]
[329106806,1718109054354,-500.0,0.00024657,2]
[329106808,1718109054365,-783.01,0.00024657,2]
[329106811,1718109054377,-500.0,0.00024657,2]
[329106813,1718109054388,-500.0,0.00024657,2]
[329106815,1718109054400,-590.61141211,0.00024657,2]
[329106817,1718109054411,-2007.45,0.00024657,2]
[329106819,1718109054423,-3984.02,0.00024657,2]
[329106821,1718109054434,-500.0,0.00024657,2]
[329106823,1718109054445,-1937.12,0.00024657,2]
[329106825,1718109054457,-500.0,0.00024657,2]
[329106827,1718109054469,-813.72,0.00024657,2]
[329106830,1718109054481,-569.91361762,0.00024657,2]
[329106832,1718109054492,-636.15,0.00024657,2]
[329106834,1718109054502,-3832.05,0.00024657,2]
[329106836,1718109054514,-512.36107241,0.00024657,2]
[329106838,1718109054525,-559.92,0.00024657,2]
[329106840,1718109054535,-500.0,0.00024657,2]
[329106842,1718109054547,-500.0,0.00024657,2]
[329106844,1718109054557,-500.0,0.00024657,2]
[329106846,1718109054568,-500.0,0.00024657,2]
[329106848,1718109054580,-2727.66,0.00024657,2]
[329106850,1718109054592,-4406.12,0.00024657,2]
[329106852,1718109054602,-1285.0,0.00024657,2]
[329106854,1718109054613,-500.0,0.00024657,2]
[329106856,1718109054623,-922.65,0.00024657,2]
[329106858,1718109054635,-646.6,0.00024657,2]
[329106860,1718109054645,-823.99,0.00024657,2]
[329106862,1718109054656,-321.39420819,0.00024657,2]
[329106864,1718109054669,-1089.12,0.00024657,2]
[329106866,1718109054680,-500.0,0.00024657,2]
[329106867,1718109054692,-522.00839264,0.00024657,2]
[329106868,1718109054703,-2135.61,0.00024657,2]
[329106869,1718109054715,-500.0,0.00024657,2]
[329106870,1718109054726,-502.99209487,0.00024657,2]
[329106871,1718109054737,-500.0,0.00024657,2]
[329106872,1718109054748,-500.0,0.00024657,2]
[329106873,1718109054759,-500.0,0.00024657,2]
[329106874,1718109054770,-803.65,0.00024657,2]
[329106875,1718109054781,-2305.72,0.00024657,2]
[329106876,1718109054792,-1072.06,0.00024657,2]
[329106877,1718109054803,-681.23,0.00024657,2]
[329106878,1718109054815,-4416.35,0.00024657,2]
[329106879,1718109054826,-5049.41,0.00024657,2]
[329106880,1718109054837,-500.0,0.00024657,2]
[329106881,1718109054848,-500.0,0.00024657,2]
[329106882,1718109054859,-500.0,0.00024657,2]
[329106883,1718109054870,-500.0,0.00024657,2]
[329106884,1718109054881,-500.0,0.00024657,2]
[329106885,1718109054892,-549.62526954,0.00024657,2]
[329106886,1718109054903,-610.8,0.00024657,2]
[329106887,1718109054916,-500.0,0.00024657,2]
[329106888,1718109054930,-500.0,0.00024657,2]
[329106889,1718109054941,-1771.16,0.00024657,2]
[329106890,1718109054951,-500.0,0.00024657,2]
[329106891,1718109054962,-500.0,0.00024657,2]
[329106892,1718109054973,-2500.4,0.00024657,2]
[329106893,1718109054985,-1425.88,0.00024657,2]
[329106894,1718109054997,-4615.8,0.00024657,2]
[329106895,1718109055009,-500.0,0.00024657,2]
[329106896,1718109055021,-568.58,0.00024657,2]
[329106897,1718109055036,-500.0,0.00024657,2]
[329106898,1718109055048,-1071.22,0.00024657,2]
[329106899,1718109055059,-655.98,0.00024657,2]
[329106900,1718109055071,-21811.04,0.00024657,2]
[329106901,1718109055081,-8601.68,0.00024657,2]
[329106902,1718109055092,-500.0,0.00024657,2]
[329106903,1718109055104,-2232.42,0.00024657,2]
[329106904,1718109055115,-4067.65,0.00024657,2]
[329106905,1718109055127,-8486.95,0.00024657,2]
[329106906,1718109055139,-151.0,0.00024657,7]
[329106907,1718109055149,-151.0,0.00024657,7]
[329106908,1718109055160,-500.0,0.00024657,2]
[329106909,1718109055171,-519.76525495,0.00024657,2]
[329106910,1718109055182,-613.91728265,0.00024657,2]
[329106911,1718109055192,-4576.76,0.00024657,2]
[329106912,1718109055204,-500.0,0.00024657,2]
[329106913,1718109055214,-683.51,0.00024657,2]
[329106914,1718109055226,-815.43,0.00024657,2]
[329106915,1718109055237,-151.0,0.00024657,7]
[329106916,1718109055248,-151.0,0.00024657,7]
[329106917,1718109055265,-500.0,0.00024657,2]
[329106918,1718109055277,-500.0,0.00024657,2]
[329106919,1718109055288,-3371.58,0.00024657,2]
[329106920,1718109055298,-8893.64,0.00024657,2]
[329106921,1718109055309,-1164.37,0.00024657,2]
[329106922,1718109055320,-516.85947685,0.00024657,2]
[329106923,1718109055331,-2807.66,0.00024657,2]
[329106924,1718109055342,-500.0,0.00024657,2]
[329106925,1718109055352,-626.32,0.00024657,2]
[329106926,1718109055362,-705.89,0.00024657,2]
[329106927,1718109055373,-500.0,0.00024657,2]
[329106928,1718109055384,-7635.56,0.00024657,2]
[329106929,1718109055395,-151.0,0.00024657,7]
[329106930,1718109055406,-151.0,0.00024657,7]
[329106931,1718109055417,-500.0,0.00024657,2]
[329106932,1718109055428,-503.79,0.00024657,2]
[329106933,1718109055439,-619.51,0.00024657,2]
[329106934,1718109055450,-205.74888525,0.00024657,2]
[329106935,1718109055461,-2083.22,0.00024657,2]
[329106936,1718109055471,-836.16,0.00024657,2]
[329106937,1718109055482,-3998.42,0.00024657,2]
[329106938,1718109055493,-524.02777726,0.00024657,2]
[329106939,1718109055503,-5800.51,0.00024657,2]
[329106940,1718109055514,-266.50671008,0.00024657,2]
[329106941,1718109055525,-500.0,0.00024657,2]
[329106942,1718109055535,-1103.86,0.00024657,2]
[329106943,1718109055546,-500.0,0.00024657,2]
[329106944,1718109055558,-500.0,0.00024657,2]
[329106945,1718109055569,-500.0,0.00024657,2]
[329106946,1718109055581,-585.26,0.00024657,2]
[329106947,1718109055592,-529.27,0.00024657,2]
[329106948,1718109055604,-500.0,0.00024657,2]
[329106949,1718109055615,-786.22,0.00024657,2]
[329106950,1718109055627,-2660.43,0.00024657,2]
[329106951,1718109055638,-500.0,0.00024657,2]
[329106952,1718109055650,-500.0,0.00024657,2]
[329106953,1718109055662,-2660.65,0.00024657,2]
[329106954,1718109055674,-4205.13,0.00024657,2]
[329106955,1718109055686,-500.0,0.00024657,2]
[329106956,1718109055696,-6485.73,0.00024657,2]
[329106957,1718109055708,-776.78,0.00024657,2]
[329106958,1718109055718,-507.30059623,0.00024657,2]
[329106959,1718109055730,-1185.81,0.00024657,2]
[329106960,1718109055741,-500.0,0.00024657,2]
[329106961,1718109055751,-500.0,0.00024657,2]
[329106962,1718109055763,-981.94,0.00024657,2]
[329106963,1718109055773,-500.0,0.00024657,2]
[329106964,1718109055784,-637.27,0.00024657,2]
[329106965,1718109055795,-527.67,0.00024657,2]
[329106966,1718109055806,-506.85108035,0.00024657,2]
[329106967,1718109055816,-500.0,0.00024657,2]
[329106968,1718109055827,-955.68,0.00024657,2]
[329106969,1718109055838,-500.0,0.00024657,2]
[329106970,1718109055849,-500.0,0.00024657,2]
[329106971,1718109055860,-500.0,0.00024657,2]
[329106972,1718109055870,-504.92992717,0.00024657,2]
[329106973,1718109055882,-871.67,0.00024657,2]
[329106974,1718109055892,-500.0,0.00024657,2]
[329106975,1718109055903,-500.0,0.00024657,2]
[329106976,1718109055914,-982.29,0.00024657,2]
[329106977,1718109055925,-500.0,0.00024657,2]
[329106978,1718109055936,-1813.41,0.00024657,2]
[329106979,1718109055946,-2010.04,0.00024657,2]
[329106980,1718109055959,-500.0,0.00024657,2]
[329106981,1718109055970,-521.83,0.00024657,2]
[329106982,1718109055981,-533.48123962,0.00024657,2]
[329106983,1718109055992,-308.04239583,0.00024657,2]
[329106984,1718109056003,-840.39,0.00024657,2]
[329106985,1718109056015,-541.38,0.00024657,2]
[329106986,1718109056029,-514.46022686,0.00024657,2]
[329106987,1718109056039,-4536.28,0.00024657,2]
[329106988,1718109056051,-5319.33,0.00024657,2]
[329106989,1718109056063,-5266.34,0.00024657,2]
[329106990,1718109056074,-612.45,0.00024657,2]
[329106991,1718109056085,-10846.64,0.00024657,2]
[329106992,1718109056095,-500.0,0.00024657,2]
[329106993,1718109056109,-500.0,0.00024657,2]
[329106994,1718109056120,-500.0,0.00024657,2]
[329106995,1718109056131,-4003.48,0.00024657,2]
[329106996,1718109056141,-581.66904246,0.00024657,2]
[329106997,1718109056153,-151.0,0.00024657,7]
[329106998,1718109056164,-151.0,0.00024657,7]
[329106999,1718109056175,-670.57,0.00024657,2]
[329107000,1718109056186,-1768.3,0.00024657,2]
[329107001,1718109056197,-729.08,0.00024657,2]
[329107002,1718109056207,-500.0,0.00024657,2]
[329107003,1718109056218,-3467.33,0.00024657,2]
[329107004,1718109056229,-2177.379068,0.00024657,7]
[329107005,1718109056239,-721.56,0.00024657,2]
[329107006,1718109056253,-2177.379068,0.00024657,7]
[329107007,1718109056266,-500.0,0.00024657,2]
[329107008,1718109056278,-1098.49,0.00024657,2]
[329107009,1718109056289,-500.0,0.00024657,2]
[329107010,1718109056301,-500.0,0.00024657,2]
[329107011,1718109056312,-500.0,0.00024657,2]
[329107012,1718109056323,-2177.379068,0.00024657,7]
[329107013,1718109056333,-500.0,0.00024657,2]
[329107014,1718109056344,-2177.379068,0.00024657,7]
[329107015,1718109056356,-11856.6,0.00024657,2]
[329107016,1718109056369,-500.0,0.00024657,2]
[329107017,1718109056598,-500.0,0.00024657,2]
[329107018,1718109056608,-500.0,0.00024657,2]
[329107019,1718109056618,-500.0,0.00024657,2]
[329107020,1718109056628,-500.0,0.00024657,2]
[329107021,1718109056638,-500.0,0.00024657,2]
[329107022,1718109056649,-500.0,0.00024657,2]
[329107023,1718109056659,-500.0,0.00024657,2]
[329107024,1718109056670,-562.63,0.00024657,2]
[329107025,1718109056680,-743.39,0.00024657,2]
[329107026,1718109056691,-151.0,0.00024657,7]
[329107027,1718109056701,-500.0,0.00024657,2]
[329107028,1718109056712,-151.0,0.00024657,7]
[329107029,1718109056722,-5079.19,0.00024657,2]
[329107030,1718109056732,-500.0,0.00024657,2]
[329107031,1718109056743,-151.0,0.00024657,7]
[329107032,1718109056753,-4424.2,0.00024657,2]
[329107033,1718109056763,-151.0,0.00024657,7]
[329107034,1718109056773,-500.0,0.00024657,2]
[329107035,1718109056783,-151.0,0.00024657,7]
[329107036,1718109056792,-2713.37,0.00024657,2]
[329107037,1718109056803,-3374.22,0.00024657,2]
[329107038,1718109056813,-500.0,0.00024657,2]
[329107039,1718109056824,-151.0,0.00024657,7]
[329107040,1718109056834,-593.2,0.00024657,2]
[329107041,1718109056844,-500.0,0.00024657,2]
[329107042,1718109056854,-200.580879,0.00024657,7]
[329107043,1718109056864,-200.580879,0.00024657,7]
[329107044,1718109056874,-500.0,0.00024657,2]
[329107045,1718109056885,-500.0,0.00024657,2]
[329107046,1718109056895,-500.0,0.00024657,2]
[329107047,1718109056905,-3085.25,0.00024657,2]
[329107048,1718109056915,-500.0,0.00024657,2]
[329107049,1718109056925,-4421.18,0.00024657,2]
[329107050,1718109056935,-500.0,0.00024657,2]
[329107051,1718109056944,-200.580879,0.00024657,7]
[329107052,1718109056954,-200.580879,0.00024657,7]
[329107053,1718109056964,-642.91203713,0.00024657,2]
[329107054,1718109056974,-500.0,0.00024657,2]
[329107055,1718109056985,-2720.72,0.00024657,2]
[329107056,1718109056996,-500.0,0.00024657,2]
[329107057,1718109057007,-518.69205201,0.00024657,2]
[329107058,1718109057017,-523.15835927,0.00024657,2]
[329107059,1718109057031,-507.69,0.00024657,2]
[329107060,1718109057041,-607.22,0.00024657,2]
[329107061,1718109057052,-500.0,0.00024657,2]
[329107062,1718109057063,-630.14,0.00024657,2]
[329107063,1718109057075,-5576.69,0.00024657,2]
[329107064,1718109057085,-500.0,0.00024657,2]
[329107065,1718109057095,-518.81037034,0.00024657,2]
[329107066,1718109057107,-500.0,0.00024657,2]
[329107067,1718109057118,-2240.53,0.00024657,2]
[329107068,1718109057128,-222.69369837,0.00024657,2]
[329107069,1718109057139,-500.0,0.00024657,2]
[329107070,1718109057149,-2005.71,0.00024657,2]
[329107071,1718109057160,-500.0,0.00024657,2]
[329107072,1718109057170,-500.0,0.00024657,2]
[329107073,1718109057180,-783.47,0.00024657,2]
[329107074,1718109057191,-592.42,0.00024657,2]
[329107075,1718109057202,-2874.33,0.00024657,2]
[329107076,1718109057213,-151.0,0.00024657,7]
[329107077,1718109057223,-168.184851,0.00024657,7]
[329107078,1718109057234,-937.37,0.00024657,2]
[329107079,1718109057245,-500.0,0.00024657,2]
[329107080,1718109057260,-589.02028537,0.00024657,2]
[329107081,1718109057271,-500.0,0.00024657,2]
[329107082,1718109057281,-151.0,0.00024657,7]
[329107083,1718109057292,-500.0,0.00024657,2]
[329107084,1718109057302,-2767.93,0.00024657,2]
[329107085,1718109057313,-1223.53,0.00024657,2]
[329107086,1718109057323,-151.0,0.00024657,7]
[329107087,1718109057334,-878.96,0.00024657,2]
[329107088,1718109057344,-3089.59,0.00024657,2]
[329107089,1718109057354,-151.0,0.00024657,7]
[329107090,1718109057366,-151.0,0.00024657,7]
[329107091,1718109057378,-3032.59,0.00024657,2]
[329107092,1718109057388,-151.0,0.00024657,7]
[329107093,1718109057399,-500.0,0.00024657,2]
[329107094,1718109057409,-3032.59,0.00024657,2]
[329107095,1718109057421,-3032.59,0.00024657,2]
[329107096,1718109057431,-1400.59,0.00024657,2]
[329107097,1718109057441,-3032.59,0.00024657,2]
[329107098,1718109057451,-3032.59,0.00024657,2]
[329107099,1718109057461,-151.0,0.00024657,7]
[329107100,1718109057472,-3032.59,0.00024657,2]
[329107101,1718109057482,-577.05,0.00024657,2]
[329107102,1718109057492,-3032.59,0.00024657,2]
[329107103,1718109057502,-151.0,0.00024657,7]
[329107104,1718109057512,-3032.59,0.00024657,2]
[329107105,1718109057522,-500.0,0.00024657,2]
[329107106,1718109057532,-3032.59,0.00024657,2]
[329107107,1718109057542,-4628.46,0.00024657,2]
[329107108,1718109057553,-3032.59,0.00024657,2]
[329107109,1718109057563,-633.57,0.00024657,2]
[329107110,1718109057573,-151.0,0.00024657,7]
[329107111,1718109057583,-151.0,0.00024657,7]
[329107112,1718109057592,-643.26,0.00024657,2]
[329107113,1718109057602,-582.84,0.00024657,2]
[329107114,1718109057612,-500.0,0.00024657,2]
[329107115,1718109057624,-1633.92,0.00024657,2]
[329107116,1718109057634,-151.0,0.00024657,7]
[329107117,1718109057644,-526.99,0.00024657,2]
[329107118,1718109057654,-500.0,0.00024657,2]
[329107119,1718109057665,-151.0,0.00024657,7]
[329107120,1718109057677,-151.0,0.00024657,7]
[329107121,1718109057687,-2225.37,0.00024657,2]
[329107122,1718109057698,-1610.44,0.00024657,2]
[329107123,1718109057708,-151.0,0.00024657,7]
[329107124,1718109057718,-538.86101636,0.00024657,2]
[329107125,1718109057728,-765.37,0.00024657,2]
[329107126,1718109057739,-500.0,0.00024657,2]
[329107127,1718109057749,-803.93,0.00024657,2]
[329107128,1718109057759,-151.0,0.00024657,7]
[329107129,1718109057770,-500.0,0.00024657,2]
[329107130,1718109057780,-501.36,0.00024657,2]
[329107131,1718109057791,-500.0,0.00024657,2]
[329107132,1718109057802,-315.83395205,0.00024657,2]
[329107133,1718109057812,-504.13,0.00024657,2]
[329107134,1718109057823,-794.08,0.00024657,2]
[329107135,1718109057833,-1093.63,0.00024657,2]
[329107136,1718109057844,-417.750336,0.00024657,7]
[329107137,1718109057854,-313.89740942,0.00024657,2]
[329107138,1718109057865,-1269.73,0.00024657,2]
[329107139,1718109057875,-1509.24,0.00024657,2]
[329107140,1718109057885,-500.0,0.00024657,2]
[329107141,1718109057895,-500.0,0.00024657,2]
[329107142,1718109057905,-417.750336,0.00024657,7]
[329107143,1718109057915,-500.0,0.00024657,2]
[329107144,1718109057927,-1541.38,0.00024657,2]
[329107145,1718109057937,-4421.02,0.00024657,2]
[329107146,1718109057948,-500.0,0.00024657,2]
[329107147,1718109057958,-549.84806466,0.00024657,2]
[329107148,1718109057969,-500.0,0.00024657,2]
[329107149,1718109057979,-417.750336,0.00024657,7]
[329107150,1718109057990,-417.750336,0.00024657,7]
[329107151,1718109058000,-500.0,0.00024657,2]
[329107152,1718109058011,-579.73210665,0.00024657,2]
[329107153,1718109058025,-500.0,0.00024657,2]
[329107154,1718109058035,-500.0,0.00024657,2]
[329107155,1718109058045,-227.172675,0.00024657,7]
[329107156,1718109058055,-7719.0,0.00024658,2]
[329107157,1718109058066,-7642.55901345,0.00024658,2]
[329107158,1718109058635,-500.0,0.00024657,2]
[329107159,1718109058645,-4817.49844917,0.00024658,2]
[329107160,1718109058658,-2850.0,0.00024658,2]
[329107161,1718109058673,-7450.2528571,0.00024658,2]
[329107162,1718109059899,-5896.54113375,0.00024654,2]
[329107163,1718109059909,-507.82599718,0.00024654,2]
[329107164,1718109059920,-227.172675,0.00024657,7]
[329107165,1718109059931,-500.0,0.00024657,2]
[329107166,1718109059945,-590.07,0.00024657,2]
[329107167,1718109059954,-21002.96641713,0.00024658,2]
[329107168,1718109060009,-2606.28335989,0.00024658,2]
[329107169,1718109060026,-3007.43990326,0.00024658,2]
[329107170,1718109060039,-151.0,0.00024658,7]
[329107171,1718109060051,-151.0,0.00024658,7]
[329107172,1718109060064,-151.0,0.00024658,7]
[329107173,1718109060075,-175.761974,0.00024658,7]
[329107174,1718109060087,-151.0,0.00024658,7]
[329107175,1718109060100,-151.0,0.00024658,7]
[329107176,1718109060116,-152.701837,0.00024658,7]
[329107177,1718109060129,-151.0,0.00024658,7]
[329107178,1718109060140,-151.0,0.00024658,7]
[329107179,1718109060151,-306.298305,0.00024658,7]
[329107180,1718109060162,-306.298305,0.00024658,7]
[329107181,1718109060179,-151.0,0.00024658,7]
[329107182,1718109060189,-151.0,0.00024658,7]
[329107183,1718109060201,-151.0,0.00024658,7]
[329107184,1718109060214,-151.0,0.00024658,7]
[329107185,1718109060234,-175.312221,0.00024658,7]
[329107186,1718109060245,-175.312221,0.00024658,7]
[329107187,1718109060261,-39.89931803,0.00024658,7]
[329107188,1718109060275,-111.10068197,0.00024658,7]
[329107189,1718109060286,-151.0,0.00024658,7]
[329107190,1718109060296,-94.27093389,0.00024658,7]
[329107191,1718109060373,-56.72906611,0.00024658,7]
[329107192,1718109060385,-151.0,0.00024658,7]
[329107193,1718109060396,-151.0,0.00024658,7]
[329107194,1718109060406,-151.0,0.00024658,7]
[329107195,1718109060417,-151.0,0.00024658,7]
[329107196,1718109060430,-169.061712,0.00024658,7]
[329107197,1718109060441,-169.061712,0.00024658,7]
[329107198,1718109060451,-136.8400822,0.00024658,7]
[329107199,1718109060463,-14.1599178,0.00024658,7]
[329107200,1718109060474,-195.587421,0.00024658,7]
[329107201,1718109060485,-123.81088495,0.00024658,7]
[329107202,1718109060511,-115.78221005,0.00024658,7]
[329107203,1718109060522,-151.0,0.00024658,7]
[329107204,1718109060533,-195.587421,0.00024658,7]
[329107205,1718109060544,-280.602831,0.00024658,7]
[329107206,1718109060554,-280.602831,0.00024658,7]
[329107207,1718109060566,-151.0,0.00024658,7]
[329107208,1718109060576,-151.0,0.00024658,7]
[329107209,1718109060588,-151.0,0.00024658,7]
[329107210,1718109060600,-151.0,0.00024658,7]
[329107211,1718109060611,-151.0,0.00024658,7]
[329107212,1718109060622,-151.0,0.00024658,7]
[329107213,1718109060632,-277.43019296,0.00024685,2]
[329107214,1718109060643,-1700.0,0.000247,9]
[329107215,1718109060655,-162.9226456,0.00024784,10]
[329107216,1718109060666,-465.13084658,0.00024793,2]
[329107217,1718109060679,-3256.43,0.00024793,2]
[329107218,1718109060690,-3256.43,0.00024793,2]
[329107219,1718109060701,-3256.43,0.00024793,2]
[329107220,1718109060714,-150.0,0.00024793,10]
[329107221,1718109060726,-150.0,0.00024793,10]
[329107222,1718109060738,-150.0,0.00024793,10]
[329107223,1718109060750,-150.0,0.00024793,10]
[329107224,1718109060760,-150.0,0.00024793,10]
[329107225,1718109060771,-150.0,0.00024793,10]
[329107226,1718109060781,-150.0,0.00024793,10]
[329107227,1718109060792,-150.0,0.00024793,10]
[329107228,1718109060803,-150.0,0.00024793,10]
[329107229,1718109060814,-150.0,0.00024793,10]
[329107230,1718109060824,-150.0,0.00024793,10]
[329107231,1718109060834,-150.0,0.00024793,10]
[329107232,1718109060844,-500.0,0.00024793,2]
[329107233,1718109060854,-500.0,0.00024793,2]
[329107234,1718109060865,-500.0,0.00024793,2]
[329107235,1718109060875,-3032.59,0.00024793,2]
[329107236,1718109060885,-3032.59,0.00024793,2]
[329107237,1718109060896,-3032.59,0.00024793,2]
[329107238,1718109060906,-150.0,0.00024793,10]
[329107239,1718109060916,-155.3806808,0.00024794,2]
[329107240,1718109060928,-15855.0362,0.00024794,2]
[329107241,1718109060938,-500.0,0.00024794,2]
[329107242,1718109060949,-500.0,0.00024794,2]
[329107243,1718109060959,-410.48105099,0.00024794,2]
[329107244,1718109060970,-500.0,0.00024794,2]
[329107245,1718109060981,-200.0,0.00024794,2]
[329107246,1718109060992,-500.0,0.00024794,2]
[329107247,1718109061003,-500.0,0.00024794,2]
[329107248,1718109061013,-500.0,0.00024794,2]
[329107249,1718109061026,-500.0,0.00024794,2]
[329107250,1718109061039,-500.0,0.00024794,2]
[329107251,1718109061049,-665.26,0.00024794,2]
[329107252,1718109061060,-151.0,0.00024794,7]
[329107253,1718109061072,-151.0,0.00024794,7]
[329107254,1718109061084,-151.0,0.00024794,7]
[329107255,1718109061095,-1436.93,0.00024794,2]
[329107256,1718109061186,-500.0,0.00024794,2]
[329107257,1718109061197,-500.0,0.00024794,2]
[329107258,1718109061208,-500.0,0.00024794,2]
[329107259,1718109061219,-1026.41,0.00024794,2]
[329107260,1718109061230,-500.0,0.00024794,2]
[329107261,1718109061241,-500.0,0.00024794,2]
[329107262,1718109061252,-780.95,0.00024794,2]
[329107263,1718109061266,-500.0,0.00024794,2]
[329107264,1718109061276,-500.0,0.00024794,2]
[329107265,1718109061287,-500.0,0.00024794,2]
[329107266,1718109061298,-500.0,0.00024794,2]
[329107267,1718109061308,-500.0,0.00024794,2]
[329107268,1718109061319,-1406.41,0.00024794,2]
[329107269,1718109061329,-500.0,0.00024794,2]
[329107270,1718109061340,-938.04,0.00024794,2]
[329107271,1718109061351,-500.0,0.00024794,2]
[329107272,1718109061362,-587.0,0.00024794,2]
[329107273,1718109061373,-500.0,0.00024794,2]
[329107274,1718109061385,-500.0,0.00024794,2]
[329107275,1718109061395,-500.0,0.00024794,2]
[329107276,1718109061406,-500.0,0.00024794,2]
[329107277,1718109061417,-250.0,0.00024794,2]
[329107278,1718109061430,-500.0,0.00024794,2]
[329107279,1718109061441,-500.0,0.00024794,2]
[329107280,1718109061451,-500.0,0.00024794,2]
[329107281,1718109061463,-500.0,0.00024794,2]
[329107282,1718109061474,-500.0,0.00024794,2]
[329107283,1718109061485,-500.0,0.00024794,2]
[329107284,1718109061496,-500.0,0.00024794,2]
[329107285,1718109061506,-151.0,0.00024794,7]
[329107286,1718109061521,-500.0,0.00024794,2]
[329107287,1718109061532,-151.0,0.00024794,7]
[329107288,1718109061544,-156.020359,0.00024794,7]
[329107289,1718109061555,-500.0,0.00024794,2]
[329107290,1718109061567,-151.0,0.00024794,7]
[329107291,1718109061578,-164.04608506,0.00024794,2]
[329107292,1718109061590,-553.45,0.00024794,2]
[329107293,1718109061602,-151.0,0.00024794,7]
[329107294,1718109061614,-151.0,0.00024794,7]
[329107295,1718109061626,-151.0,0.00024794,7]
[329107296,1718109061644,-151.0,0.00024794,7]
[329107297,1718109061655,-151.0,0.00024794,7]
[329107298,1718109061666,-500.0,0.00024794,2]
[329107299,1718109061678,-957.97,0.00024794,2]
[329107300,1718109061689,-500.0,0.00024794,2]
[329107301,1718109061699,-500.0,0.00024794,2]
[329107302,1718109061710,-500.0,0.00024794,2]
[329107303,1718109061720,-500.0,0.00024794,2]
[329107304,1718109061730,-500.0,0.00024794,2]
[329107305,1718109061741,-500.0,0.00024794,2]
[329107306,1718109061752,-151.0,0.00024794,7]